bitfinex/quotes_ETHUSD_20250403
["timestamp","ask_amount","ask_price","bid_price","bid_amount"]
[1743700674851,5.63635,1774.2,1773.9,5.63719]
[1743700675050,5.63635,1774.2,1773.9,11.27438]
[1743700675242,5.63635,1774.2,1773.9,5.63719]
[1743700675767,0.8309,1774.1,1773.8,5.63751]
[1743700675950,6.46764,1774.1,1773.8,5.63751]
[1743700676521,6.46764,1774.1,1773.8,11.27501]
[1743700676731,6.46764,1774.1,1773.8,5.6375]
[1743700676961,8.11776277,1774.1,1773.7,5.63784]
[1743700677133,10.03425773,1774.0,1773.7,11.27567]
[1743700677336,4.39723773,1774.0,1773.7,11.27567]
[1743700677853,0.7642,1773.9,1773.6,5.63799]
[1743700678147,10.4467331,1774.0,1773.7,5.63784]
[1743700678148,4.8096231,1774.0,1773.7,5.63784]
[1743700678348,0.41238537,1774.0,1773.8,5.63747]
[1743700678549,6.40093,1774.1,1773.8,5.63747]
[1743700678864,3.0,1774.2,1773.9,5.63719]
[1743700679155,8.63637,1774.2,1773.8,5.63741]
[1743700679319,5.63678,1774.1,1773.8,5.63741]
[1743700679525,5.6392,1773.3,1773.2,0.10716774]
[1743700679756,19.46273773,1773.3,1773.2,0.10716774]
[1743700680278,29.81834673,1773.3,1773.2,0.21306558]
[1743700680477,32.22166496,1773.3,1773.2,0.10716774]
[1743700680775,35.60466496,1773.3,1773.2,0.10716774]
[1743700681138,36.02001105,1773.3,1773.2,0.10716774]
[1743700682226,14.25723335,1773.3,1773.2,0.10716774]
[1743700682523,15.51099562,1773.3,1773.2,0.10716774]
[1743700682725,19.90823335,1773.3,1773.2,0.22977656]
[1743700682920,11.26903335,1773.3,1773.2,0.22977656]
[1743700683355,6.87179562,1773.3,1773.2,0.22977656]
[1743700683653,0.44449562,1773.3,1773.2,0.22977656]
[1743700683961,0.44449562,1773.3,1773.2,5.86929656]
[1743700684468,0.02914953,1773.3,1773.2,5.86929656]
[1743700685971,0.02914953,1773.3,1773.2,7.80919322]
[1743700689655,0.773,1772.8,1771.6,6.69623765]
[1743700689961,0.773,1772.8,1772.2,11.28514]
[1743700689962,3.0,1772.6,1772.2,11.28514]
[1743700690189,4.92593953,1772.6,1772.3,5.64234]
[1743700690338,0.02914953,1772.5,1772.2,5.64255]
[1743700690539,0.02914953,1772.5,1772.2,11.28513]
[1743700690734,0.02914953,1772.5,1772.2,5.64255]
[1743700691061,0.02914953,1772.5,1772.4,5.64206]
[1743700691238,0.02914953,1772.5,1772.4,7.5789]
[1743700692255,0.02914953,1772.5,1772.4,6.45046]
[1743700693636,0.02914953,1772.5,1772.3,5.64221]
[1743700694562,6.01,1772.4,1772.3,5.64221]
[1743700694964,6.03914953,1772.4,1772.3,5.64221]
[1743700702754,6.03914953,1772.4,1772.3,6.49422693]
[1743700703079,6.03914953,1772.4,1772.3,8.20148969]
[1743700704949,6.03914953,1772.4,1772.3,7.65148969]
[1743700705258,6.03914953,1772.4,1772.3,6.43781]
[1743700705463,3.0,1773.1,1772.9,5.64035]
[1743700705670,6.01,1773.0,1772.9,11.2807]
[1743700706077,6.01,1773.0,1772.9,5.64035]
[1743700706802,6.01,1773.1,1773.0,5.64015]
[1743700707883,6.8372,1773.1,1772.8,5.64067]
[1743700708054,12.90542572,1773.1,1772.8,5.64067]
[1743700708489,18.54547572,1773.1,1772.7,5.64106]
[1743700708674,12.90542572,1773.1,1772.7,11.28206]
[1743700708974,20.39998629,1773.1,1772.7,11.28202]
[1743700709174,14.75992629,1773.1,1772.7,11.28202]
[1743700709700,20.39992629,1773.1,1772.7,5.641]
[1743700709998,9.11999629,1773.1,1772.8,5.64073]
[1743700710170,7.26549572,1773.1,1772.9,5.64032]
[1743700711003,7.26549572,1773.1,1772.8,11.28152]
[1743700711502,7.26549572,1773.1,1772.8,5.64076]
[1743700711704,12.90533572,1773.1,1772.8,11.28141]
[1743700711904,18.54532572,1773.1,1772.8,5.64065]
[1743700712102,7.26549572,1773.1,1772.8,11.28135]
[1743700712403,12.90536572,1773.1,1772.8,5.64065]
[1743700713603,7.26549572,1773.1,1772.8,5.64048]
[1743700713803,11.66756705,1773.1,1772.8,5.64054]
[1743700714103,11.66756705,1773.1,1772.9,5.64046]
[1743700714898,11.66756705,1773.1,1772.8,5.64054]
[1743700715098,11.66756705,1773.1,1772.8,11.28124]
[1743700715304,11.66756705,1773.1,1772.8,11.28118]
[1743700715803,11.66756705,1773.1,1772.9,5.64039]
[1743700716013,6.01,1773.1,1773.0,5.64015]
[1743700717878,6.01,1773.2,1773.0,5.64015]
[1743700718203,0.764,1773.1,1772.8,11.32572]
[1743700718396,5.16607133,1773.1,1772.8,11.28142]
[1743700719501,5.16607133,1773.1,1772.8,11.28139]
[1743700721007,5.16607133,1773.1,1772.9,5.64044]
[1743700721207,0.764,1773.1,1772.9,5.64034]
[1743700721408,0.764,1773.1,1773.0,5.64015]
[1743700721829,6.774,1773.1,1773.0,5.64015]
[1743700722028,6.01,1773.1,1773.0,5.64015]
[1743700722199,6.01,1773.1,1773.0,6.768199]
[1743700723199,6.01,1773.1,1773.0,5.64015]
[1743700726648,6.01,1773.2,1773.1,5.63983]
[1743700728547,6.01,1773.2,1772.9,11.28078]
[1743700729054,6.01,1773.2,1773.0,5.64005]
[1743700729417,6.01,1773.2,1772.9,5.64034]
[1743700729753,8.59768054,1773.2,1773.0,5.64015]
[1743700729946,8.59768054,1773.2,1773.0,11.28021]
[1743700730151,6.01,1773.2,1773.0,5.64006]
[1743700730315,6.01,1773.2,1773.0,5.64003]
[1743700731651,6.01,1773.2,1773.1,5.63983]
[1743700734762,6.01,1773.2,1772.9,11.28085]
[1743700734943,8.03375454,1773.2,1772.9,11.28085]
[1743700735758,8.03375454,1773.2,1773.0,5.64015]
[1743700735931,8.03375454,1773.2,1773.0,11.28018]
[1743700736121,8.03375454,1773.2,1772.9,5.64039]
[1743700736329,8.03375454,1773.2,1773.0,5.64014]
[1743700736962,8.03375454,1773.2,1772.9,11.28067]
[1743700737170,13.67328454,1773.2,1772.9,5.64033]
[1743700737376,4.40207133,1773.1,1772.9,5.64033]
[1743700737930,4.40207133,1773.1,1772.9,11.28066]
[1743700738335,6.01,1773.0,1772.9,11.28066]
[1743700738880,6.01,1773.0,1772.9,5.64033]
[1743700740469,6.03914238,1773.0,1772.9,5.64033]
[1743700740863,6.03914238,1773.0,1772.8,5.64064]
[1743700741067,13.08630662,1773.0,1772.7,5.64099]
[1743700741266,18.72674662,1773.0,1772.6,11.28284]
[1743700741561,8.64048,1772.9,1772.6,11.28271]
[1743700741763,8.64048,1772.9,1772.6,5.64129]
[1743700741972,0.02914238,1772.8,1772.6,5.64129]
[1743700743147,0.02914238,1772.8,1772.6,11.28263]
[1743700743334,0.02914238,1772.8,1772.6,5.64129]
[1743700743535,0.44949748,1772.8,1772.6,5.64129]
[1743700743964,0.02914238,1772.8,1772.7,5.64111]
[1743700744372,0.02914238,1772.8,1772.7,6.45171]
[1743700745072,0.02914238,1772.8,1772.7,12.10571]
[1743700749197,0.02914238,1772.8,1772.7,6.45171]
[1743700757576,0.02914238,1772.8,1772.7,5.64111]
[1743700757775,0.02914238,1772.8,1772.7,7.4557666]
[1743700760108,0.02914238,1772.8,1772.7,8.0057666]
[1743700760710,6.01,1773.0,1772.9,5.64047]
[1743700760890,6.01,1773.4,1772.9,6.45467]
[1743700761088,6.01,1773.4,1773.3,5.6392]
[1743700761389,9.7867,1773.5,1773.4,5.63888]
[1743700761613,9.7867,1773.5,1773.3,5.6392]
[1743700761911,15.42529,1773.5,1773.2,5.63944]
[1743700763280,9.7867,1773.5,1773.2,11.27883]
[1743700763484,9.7867,1773.5,1773.2,5.63939]
[1743700763714,17.531711,1773.5,1773.1,11.27951]
[1743700764321,0.754,1773.4,1773.1,11.27951]
[1743700764620,0.754,1773.4,1773.2,5.6395]
[1743700764797,6.01,1773.3,1773.2,5.6395]
[1743700770713,6.01,1773.5,1773.3,5.63905]
[1743700770910,6.01,1773.5,1773.4,5.63888]
[1743700776410,6.01,1773.5,1773.4,7.330578]
[1743700776595,6.01,1773.7,1773.5,5.63843]
[1743700777434,6.42349375,1773.7,1773.5,5.63843]
[1743700777848,6.42349375,1773.7,1773.5,11.2769]
[1743700778001,6.42349375,1773.7,1773.5,5.63843]
[1743700778504,6.42349375,1773.7,1773.6,5.63824]
[1743700778829,6.01,1773.7,1773.6,6.765907]
[1743700779836,6.01,1773.7,1773.6,5.63824]
[1743700779995,6.8245,1773.7,1773.6,5.63824]
[1743700780201,6.8245,1773.7,1773.5,5.63842]
[1743700781641,6.01,1773.7,1773.6,5.63824]
[1743700782418,6.01,1773.8,1773.6,11.27648]
[1743700782640,6.01,1773.8,1773.7,5.63793]
[1743700784555,6.01,1773.8,1773.6,5.63812]
[1743700785652,6.01,1773.8,1773.6,11.27627]
[1743700786021,6.01,1773.8,1773.7,5.63793]
[1743700786221,6.01,1773.8,1773.6,5.63812]
[1743700786425,3.8127,1773.7,1773.4,5.63877]
[1743700786843,3.8127,1773.7,1773.5,5.6385]
[1743700787061,0.8127,1773.7,1773.6,5.63824]
[1743700787245,6.8227,1773.7,1773.6,5.63824]
[1743700787565,6.01,1773.7,1773.6,5.63824]
[1743700787875,6.01,1773.7,1773.6,6.765906]
[1743700790970,6.01,1773.7,1773.6,9.765906]
[1743700791141,6.56,1773.9,1773.7,8.63772]
[1743700791335,6.56,1773.9,1773.8,5.63761]
[1743700792678,6.56,1773.9,1773.7,14.27552]
[1743700792879,6.56,1773.9,1773.7,15.8927586]
[1743700793249,6.56,1773.9,1773.8,5.63761]
[1743700794580,6.56,1773.9,1773.8,8.69398333]
[1743700794880,6.56,1773.9,1773.8,8.63761]
[1743700795548,0.55,1773.9,1773.8,9.41211]
[1743700795744,0.55,1773.9,1773.8,11.07881686]
[1743700799570,0.55,1773.9,1773.8,11.62881686]
[1743700800461,6.01,1774.3,1774.2,5.63634]
[1743700800663,6.01,1774.4,1774.3,5.63602]
[1743700800864,6.01,1774.8,1774.7,5.63475]
[1743700801069,1e-05,1774.9,1774.8,6.44283]
[1743700801293,1e-05,1774.9,1774.8,8.09079513]
[1743700801475,1e-05,1774.9,1774.8,7.28239513]
[1743700803070,1e-05,1774.9,1774.8,5.63443]
[1743700804300,1e-05,1774.9,1774.7,5.63475]
[1743700804800,1e-05,1774.9,1774.8,5.63443]
[1743700806409,0.8136,1774.8,1774.5,5.63536]
[1743700806599,6.44814,1774.8,1774.4,5.6356]
[1743700806811,7.53316213,1774.8,1774.4,11.27111]
[1743700807313,6.44882,1774.6,1774.2,5.63619]
[1743700807486,6.01,1774.5,1774.3,5.636]
[1743700807688,6.01,1774.5,1774.3,5.63583]
[1743700807888,6.01,1774.5,1774.4,5.6357]
[1743700808108,6.01,1774.5,1774.4,6.762853]
[1743700808409,6.01,1774.5,1774.4,7.588153]
[1743700809598,6.01,1774.5,1774.4,6.762853]
[1743700811717,6.01,1774.7,1774.5,5.63522]
[1743700812031,6.01,1774.7,1774.6,5.63507]
[1743700812211,1e-05,1774.9,1774.8,5.63443]
[1743700814240,1e-05,1774.9,1774.7,5.63475]
[1743700814385,0.8067,1774.8,1774.5,5.63533]
[1743700814587,0.8067,1774.8,1774.6,5.63505]
[1743700814830,1.450783,1774.8,1774.5,5.63526]
[1743700814995,12.719903,1774.8,1774.4,5.63566]
[1743700815195,5.63476,1774.7,1774.4,5.63566]
[1743700815391,6.01,1774.6,1774.3,5.63588]
[1743700815613,5.63539,1774.5,1774.2,5.63633]
[1743700815814,6.01,1774.4,1774.2,5.63633]
[1743700816400,6.01,1774.4,1774.2,5.63617]
[1743700817339,6.01,1774.4,1774.3,5.63602]
[1743700818342,6.01,1774.4,1774.2,5.63617]
[1743700818623,6.01,1774.4,1774.3,5.63602]
[1743700820191,6.01,1774.4,1774.3,6.763239]
[1743700820619,6.01001,1774.9,1774.8,5.63443]
[1743700821520,6.01001,1774.9,1774.3,7.572219]
[1743700821689,0.7693,1774.6,1774.4,5.63567]
[1743700821888,0.7693,1774.6,1774.4,11.27125]
[1743700822126,0.7693,1774.6,1774.3,5.63599]
[1743700822425,0.7693,1774.6,1774.5,5.63539]
[1743700823094,0.7693,1774.6,1774.4,11.27136]
[1743700823431,0.7693,1774.6,1774.4,11.27126]
[1743700823636,0.7693,1774.6,1774.4,5.63558]
[1743700823994,0.7693,1774.6,1774.4,5.63557]
[1743700824824,15.46117634,1774.6,1774.2,11.27258]
[1743700825002,17.00737397,1774.6,1774.2,5.63629]
[1743700825393,5.63655,1774.2,1773.8,5.63759]
[1743700825609,5.63655,1774.2,1773.7,11.27576]
[1743700825610,0.7801,1774.0,1773.7,11.27576]
[1743700825927,6.7901,1774.0,1773.7,5.63788]
[1743700826096,6.7901,1774.0,1773.7,6.201668]
[1743700826298,8.63739,1773.9,1773.6,5.6382]
[1743700826527,9.06345957,1773.9,1773.6,5.6382]
[1743700827123,14.70096957,1773.9,1773.5,5.63854]
[1743700827429,9.06345957,1773.9,1773.5,11.27686]
[1743700828207,14.70093957,1773.9,1773.5,5.63839]
[1743700828430,11.21256353,1773.9,1773.5,5.63839]
[1743700828635,16.85010353,1773.9,1773.5,5.63839]
[1743700828933,16.85016353,1773.9,1773.5,5.63839]
[1743700829234,16.85004353,1773.9,1773.5,5.63839]
[1743700829438,6.01,1773.8,1773.5,5.63839]
[1743700830233,6.01,1773.8,1773.3,5.6392]
[1743700830441,6.01,1773.8,1773.5,11.27672]
[1743700830610,6.01,1773.8,1773.5,5.63832]
[1743700830811,6.01,1773.8,1773.6,5.63824]
[1743700831845,6.01,1773.8,1773.5,5.63832]
[1743700832309,6.01,1773.8,1773.6,0.22545301]
[1743700833335,0.8298,1773.7,1773.6,0.22545301]
[1743700833518,0.8298,1773.7,1773.4,11.27758]
[1743700833719,0.8298,1773.7,1773.6,0.22545301]
[1743700833919,0.8298,1773.7,1773.6,5.63824]
[1743700834103,0.8298,1773.7,1773.6,0.22545301]
[1743700834314,0.8298,1773.7,1773.6,5.86369301]
[1743700834518,6.01,1773.8,1773.7,5.63793]
[1743700835044,6.01,1773.8,1773.7,7.01806598]
[1743700835243,0.7975,1774.1,1773.9,5.63721]
[1743700835542,6.01,1774.0,1773.8,5.63758]
[1743700836118,6.01,1774.0,1773.8,11.27505]
[1743700836448,6.01,1774.0,1773.8,5.63747]
[1743700836847,6.01,1774.0,1773.8,11.27492]
[1743700837049,6.01,1774.0,1773.8,5.63745]
[1743700837351,3.0,1773.9,1773.6,5.63817]
[1743700837520,0.8211,1773.8,1773.6,5.63817]
[1743700838146,3.0,1773.9,1773.7,5.63793]
[1743700838340,6.7809,1774.0,1773.9,5.63729]
[1743700838739,6.01,1774.0,1773.9,5.63729]
[1743700838940,6.01,1774.0,1773.9,6.76478]
[1743700840471,6.01,1774.0,1773.8,5.63761]
[1743700840752,0.7891,1773.9,1773.7,11.27564]
[1743700841056,0.7891,1773.9,1773.7,5.63778]
[1743700841057,6.7991,1773.9,1773.7,5.63778]
[1743700841244,6.7991,1773.9,1773.8,0.20771421]
[1743700844654,12.43641,1773.9,1773.6,5.63809]
[1743700844860,12.43641,1773.9,1773.8,0.20701372]
[1743700845055,14.68396013,1773.9,1773.6,5.63809]
[1743700845358,14.68396013,1773.9,1773.6,11.27624]
[1743700845560,12.43641,1773.9,1773.7,0.20701372]
[1743700846158,6.7991,1773.9,1773.7,0.20701372]
[1743700847437,12.4364,1773.9,1773.7,0.20701372]
[1743700847890,14.64761,1773.8,1773.7,0.20701372]
[1743700848039,0.7702,1773.3,1773.1,5.63978]
[1743700848354,5.80298628,1773.2,1773.1,5.63978]
[1743700851972,5.80298628,1773.2,1773.0,5.64003]
[1743700852169,5.64024,1773.0,1772.6,5.64132]
[1743700852373,0.7614,1772.7,1772.5,5.64164]
[1743700852872,0.7614,1772.7,1772.5,5.64156]
[1743700853273,0.7614,1772.7,1772.4,5.64197]
[1743700853442,0.7614,1772.7,1772.4,11.28385]
[1743700853639,0.7614,1772.7,1772.4,5.64188]
[1743700855168,5.80298628,1772.6,1772.2,6.43239]
[1743700855370,11.44450628,1772.6,1772.2,5.64259]
[1743700855569,11.44450628,1772.6,1772.2,11.28514]
[1743700855763,11.44450628,1772.6,1772.3,0.16457433]
[1743700855963,13.81987404,1772.6,1772.3,0.16457433]
[1743700856368,13.81987404,1772.6,1772.3,5.80691433]
[1743700856545,14.24062462,1772.6,1772.3,5.80691433]
[1743700856875,14.24062462,1772.6,1772.3,0.16457433]
[1743700857574,14.24062462,1772.6,1772.3,5.80691433]
[1743700857770,5.80298628,1772.6,1772.4,5.64189]
[1743700857972,5.80298628,1772.6,1772.5,5.64174]
[1743700858444,5.80298628,1772.6,1772.5,5.80631433]
[1743700858775,5.80298628,1772.9,1772.8,5.64079]
[1743700859283,5.80298628,1772.9,1772.8,5.80937539]
[1743700860085,5.80298628,1772.9,1772.8,0.16858539]
[1743700860281,5.83212866,1772.9,1772.8,5.80937539]
[1743700860484,13.31445418,1772.9,1772.8,0.16858539]
[1743700860979,7.67398418,1772.9,1772.6,5.64129]
[1743700861163,13.31459418,1772.9,1772.8,0.16673867]
[1743700861365,8.64101,1772.8,1772.4,5.64196]
[1743700861686,11.47324866,1772.7,1772.5,0.16673867]
[1743700861886,13.18467453,1772.7,1772.5,0.16673867]
[1743700862181,0.7739,1772.6,1772.5,0.16673867]
[1743700862555,0.80304238,1772.6,1772.5,0.16673867]
[1743700862757,0.02914238,1772.6,1772.5,0.16673867]
[1743700863089,0.02914238,1772.6,1772.5,5.80847867]
[1743700865690,0.02914238,1772.6,1772.5,7.59575054]
[1743700870387,0.02914238,1772.6,1772.5,8.90315054]
[1743700871577,2.38e-06,1772.6,1772.5,8.90315054]
[1743700871811,5.80298628,1773.0,1772.9,5.64047]
[1743700872014,5.80298628,1773.0,1772.9,6.56970218]
[1743700872229,5.80298628,1773.0,1772.9,8.3553374]
[1743700873267,5.80298628,1773.2,1773.1,5.63983]
[1743700873618,5.80298628,1773.2,1773.1,5.80905166]
[1743700873968,5.80298628,1773.5,1773.4,5.63888]
[1743700874166,5.80298628,1773.5,1773.4,5.80771973]
[1743700875141,5.80298628,1773.5,1773.4,0.16883973]
[1743700875340,12.82064491,1773.5,1773.4,0.16883973]
[1743700875522,12.82064491,1773.5,1773.1,5.63973]
[1743700875723,12.82064491,1773.5,1773.2,5.80723139]
[1743700876335,12.82064491,1773.5,1773.2,0.16782139]
[1743700876849,12.82064491,1773.5,1773.2,5.80732139]
[1743700877239,1.28206449,1773.4,1773.2,0.16782139]
[1743700877453,12.21748628,1773.3,1773.2,0.16782139]
[1743700877621,12.21748628,1773.3,1773.0,5.64012]
[1743700877821,5.63961,1773.2,1772.9,5.6404]
[1743700878314,5.63961,1773.2,1772.9,5.64037]
[1743700878730,17.85684628,1773.3,1772.9,5.64037]
[1743700879043,19.77080736,1773.3,1772.9,11.28073]
[1743700879244,14.13141736,1773.3,1773.0,5.64009]
[1743700879413,6.57828628,1773.3,1773.1,5.6398]
[1743700879619,6.57828628,1773.3,1773.1,5.63969]
[1743700879922,5.80298628,1773.3,1773.2,5.63952]
[1743700885226,5.80298628,1773.3,1773.1,5.63969]
[1743700885433,6.60608628,1773.3,1773.1,11.27939]
[1743700885643,6.60608628,1773.3,1772.8,6.43173]
[1743700885950,6.60608628,1773.3,1773.1,5.63981]
[1743700886149,9.60608628,1773.3,1773.2,0.16572016]
[1743700886451,15.24528628,1773.3,1773.0,5.63992]
[1743700886653,15.24528628,1773.3,1773.2,0.16572016]
[1743700886946,23.41315731,1773.3,1772.9,11.28081]
[1743700887154,17.77373731,1773.3,1773.0,0.16572016]
[1743700888154,11.44259628,1773.2,1773.0,0.16572016]
[1743700888355,5.80298628,1773.2,1773.0,0.16572016]
[1743700888532,11.44267628,1773.2,1773.0,0.16572016]
[1743700888722,13.22009901,1773.2,1772.9,5.64044]
[1743700888924,13.22009901,1773.2,1773.0,0.16572016]
[1743700889846,13.22008901,1773.2,1773.0,0.16572016]
[1743700890024,18.85975901,1773.2,1772.8,11.28142]
[1743700890226,16.22007901,1773.2,1773.1,0.16572016]
[1743700890441,5.63987,1773.1,1772.8,5.6407]
[1743700890752,21.85979901,1773.2,1772.8,11.28138]
[1743700890954,5.63989,1773.1,1772.9,0.16572016]
[1743700891154,21.85987901,1773.2,1772.8,11.28134]
[1743700891359,21.85975901,1773.2,1772.8,11.28134]
[1743700891653,21.85975901,1773.2,1772.9,0.16572016]
[1743700891850,21.85975901,1773.2,1772.8,11.28134]
[1743700892052,13.62879218,1773.1,1773.0,0.16572016]
[1743700892234,5.64065,1772.9,1772.5,11.28326]
[1743700892434,5.80298628,1772.8,1772.5,11.28326]
[1743700892638,0.797,1772.7,1772.5,11.28326]
[1743700893026,0.797,1772.7,1772.5,5.64163]
[1743700893221,0.797,1772.7,1772.4,5.64204]
[1743700893222,7.25998491,1772.7,1772.4,5.64204]
[1743700893423,11.44448628,1772.6,1772.3,5.64231]
[1743700893654,0.797,1772.5,1772.3,5.64231]
[1743700893863,5.80298628,1772.4,1772.3,5.64231]
[1743700895631,5.80298628,1772.4,1772.3,6.5227316]
[1743700895847,5.80298628,1772.4,1772.3,8.24710616]
[1743700896761,5.80298628,1772.8,1772.7,5.64111]
[1743700897278,5.80298628,1772.8,1772.6,5.64132]
[1743700897574,5.80298628,1772.8,1772.6,11.2826]
[1743700897779,5.80298628,1772.8,1772.6,5.64127]
[1743700898154,5.80298628,1772.8,1772.5,5.64162]
[1743700898359,12.71394946,1772.8,1772.5,11.28325]
[1743700898548,5.80298628,1772.8,1772.6,5.64141]
[1743700898744,5.80298628,1772.8,1772.2,5.64269]
[1743700898745,5.80298628,1772.6,1771.8,0.776]
[1743700898951,6.4704,1772.2,1771.8,5.64393]
[1743700899173,15.27338628,1772.2,1772.1,0.20865419]
[1743700899584,9.63068628,1772.2,1772.1,0.20865419]
[1743700899750,15.27338628,1772.2,1772.1,0.20865419]
[1743700900081,17.36496291,1772.2,1772.1,0.20865419]
[1743700900445,17.79106222,1772.2,1772.1,0.20865419]
[1743700900850,12.14836222,1772.2,1772.1,0.20865419]
[1743700901078,17.79106222,1772.2,1772.1,0.20865419]
[1743700901783,12.14836222,1772.2,1772.1,0.20865419]
[1743700902968,17.79106222,1772.2,1772.1,0.20865419]
[1743700903580,12.14836222,1772.2,1772.1,0.20865419]
[1743700903754,17.79106222,1772.2,1772.1,0.20865419]
[1743700904159,12.14836222,1772.2,1772.1,0.20865419]
[1743700905261,17.79106222,1772.2,1772.1,0.20865419]
[1743700905563,22.66778497,1772.2,1772.1,0.20865419]
[1743700905977,28.31278497,1772.2,1772.1,0.20865419]
[1743700906687,49.29519797,1772.2,1772.1,0.20865419]
[1743700907193,5.75298628,1771.8,1771.3,5.64554]
[1743700907358,6.45973,1771.6,1771.3,5.64554]
[1743700907557,5.75298628,1771.5,1771.4,0.16342728]
[1743700907761,5.75298628,1771.5,1771.3,5.64554]
[1743700908069,5.75298628,1771.5,1771.4,0.16342728]
[1743700908979,5.75298628,1771.5,1771.4,5.80867728]
[1743700911603,5.75298628,1771.5,1771.4,0.16342728]
[1743700911780,6.1847168,1771.5,1771.4,0.16342728]
[1743700912383,6.1847168,1771.5,1771.4,5.80867728]
[1743700914174,6.1847168,1771.5,1771.4,0.16342728]
[1743700914503,6.1847168,1771.5,1771.4,5.80867728]
[1743700915229,8.64588,1771.2,1771.1,0.05]
[1743700915423,25.73478903,1771.2,1771.1,0.05]
[1743700916231,25.73478903,1771.2,1770.8,0.01]
[1743700916232,15.76218628,1771.2,1770.8,0.01]
[1743700916528,14.29866275,1770.9,1770.8,0.01]
[1743700916674,16.29319502,1770.9,1770.8,0.01]
[1743700917322,16.29319502,1770.9,1770.3,5.6486]
[1743700917323,5.64828,1770.5,1770.1,5.69936]
[1743700917525,8.64907,1770.2,1770.1,0.05]
[1743700917725,5.6508,1769.7,1769.3,0.17011348]
[1743700918029,11.40397628,1769.6,1769.3,0.17011348]
[1743700918332,11.81839099,1769.6,1769.3,0.17011348]
[1743700918830,6.16740099,1769.6,1769.3,0.17011348]
[1743700919036,5.75298628,1770.0,1769.7,5.65049]
[1743700919195,5.75298628,1770.0,1769.8,5.65018]
[1743700919716,6.17879485,1770.0,1769.8,5.65018]
[1743700920313,6.17879485,1770.0,1769.5,0.55]
[1743700920314,0.7579,1769.6,1769.5,0.55]
[1743700920514,5.65038,1769.8,1769.5,0.55]
[1743700920717,0.02914477,1769.6,1769.5,0.55]
[1743700921197,0.4555191,1769.6,1769.5,0.55]
[1743700923812,0.4555191,1769.6,1769.5,0.70776569]
[1743700924643,0.02914477,1769.6,1769.5,6.35907569]
[1743700925432,5.78213105,1769.6,1769.5,6.35907569]
[1743700925613,0.42493301,1770.1,1770.0,5.64971]
[1743700925934,5.75298628,1770.1,1770.0,5.64971]
[1743700926096,5.75298628,1770.1,1770.0,5.80619902]
[1743700926709,5.75298628,1770.1,1770.0,6.55839902]
[1743700926920,5.75298628,1770.1,1770.0,5.80619902]
[1743700927324,5.75298628,1770.1,1770.0,0.15648902]
[1743700927525,6.17028881,1770.1,1770.0,0.15648902]
[1743700928744,6.92558881,1770.1,1770.0,0.15648902]
[1743700928942,6.17028881,1770.1,1769.9,5.64986]
[1743700929143,6.17028881,1770.1,1769.5,8.32524857]
[1743700929144,6.17028881,1770.1,1770.0,0.15463837]
[1743700929344,21.06873044,1770.1,1770.0,0.15463837]
[1743700929550,5.64973,1770.0,1769.7,5.65066]
[1743700929739,8.65004,1769.9,1769.6,5.65082]
[1743700929935,8.65004,1769.9,1769.8,0.15540409]
[1743700930152,10.080017,1769.9,1769.6,5.65082]
[1743700930332,14.95673975,1769.9,1769.8,0.15540409]
[1743700930657,5.65063,1769.8,1769.5,6.20128]
[1743700931243,5.65056,1769.8,1769.6,0.15719104]
[1743700931430,6.40887,1769.7,1769.6,0.15719104]
[1743700931631,1.964143,1769.7,1769.6,0.15719104]
[1743700931831,33.95367375,1769.7,1769.6,0.15719104]
[1743700932039,31.92129675,1769.7,1769.6,0.15719104]
[1743700932259,8.65099,1769.6,1769.5,0.55]
[1743700932445,32.800569,1769.6,1769.5,0.55]
[1743700932655,36.96672743,1769.6,1769.5,0.55]
[1743700932969,38.29402743,1769.6,1769.5,0.55]
[1743700933126,5.65163,1769.4,1769.3,0.17011348]
[1743700933333,54.56802975,1769.4,1769.3,0.17011348]
[1743700933666,25.77028163,1769.4,1769.3,0.17011348]
[1743700933858,20.78808163,1769.4,1769.3,0.17011348]
[1743700934059,23.85468963,1769.4,1769.3,0.31917524]
[1743700934271,29.86468963,1769.4,1769.3,0.31917524]
[1743700934559,26.79808163,1769.4,1769.3,0.31917524]
[1743700934726,31.18697763,1769.4,1769.3,0.17011348]
[1743700934926,31.18697763,1769.4,1769.3,0.32089773]
[1743700935232,31.18697763,1769.4,1769.3,0.17011348]
[1743700935532,16.26972888,1769.4,1769.3,0.17011348]
[1743700935732,21.92135888,1769.4,1769.3,0.17011348]
[1743700935959,21.92135888,1769.4,1769.3,0.32089773]
[1743700935960,11.829,1769.4,1769.3,0.32089773]
[1743700936146,6.01,1769.4,1769.3,0.32089773]
[1743700937233,6.01,1769.4,1769.3,5.97284773]
[1743700937766,7.60936863,1769.4,1769.3,5.97284773]
[1743700938057,9.78373885,1769.4,1769.3,5.97284773]
[1743700938262,7.87941072,1769.4,1769.3,7.1353425]
[1743700938439,6.01,1769.4,1769.3,7.1353425]
[1743700940741,6.5252103,1769.4,1769.3,7.1353425]
[1743700940936,6.01,1769.4,1769.3,0.32089773]
[1743700941665,6.01,1769.4,1769.3,5.97284773]
[1743700942066,11.66145,1769.5,1769.3,0.32089773]
[1743700942369,12.827775,1769.4,1769.3,0.32089773]
[1743700942740,12.827775,1769.4,1769.3,0.17011348]
[1743700942741,7.176145,1769.4,1769.3,0.17011348]
[1743700942947,7.176145,1769.4,1769.3,0.31923903]
[1743700943645,6.01,1769.4,1769.3,0.17011348]
[1743700944064,6.01,1769.4,1769.3,0.32089745]
[1743700944541,9.01,1769.4,1769.3,5.97284745]
[1743700944747,6.01,1769.4,1769.3,5.97284745]
[1743700945063,6.01,1769.4,1769.3,6.77354745]
[1743700945777,6.01,1769.4,1769.3,8.0161182]
[1743700946747,6.01,1769.4,1769.3,6.77354745]
[1743700948359,6.01,1769.5,1769.4,5.65163]
[1743700948573,6.01,1770.0,1769.7,5.65041]
[1743700948777,3.0,1769.9,1769.7,5.65041]